[Event "Live Chess"]
[Site "Chess.com"]
[Date "2011.02.01"]
[Round "-"]
[White "Liiiife"]
[Black "hipposcottimus"]
[Result "0-1"]
[CurrentPosition "6k1/pp4pp/6n1/1N2p3/3p2b1/4R1P1/PPK4P/3r4 w - -"]
[Timezone "UTC"]
[ECO "C20"]
[ECOUrl "https://www.chess.com/openings/Kings-Pawn-Opening-MacLeod-Attack"]
[UTCDate "2011.02.01"]
[UTCTime "02:59:54"]
[WhiteElo "1432"]
[BlackElo "1641"]
[TimeControl "60"]
[Termination "hipposcottimus won on time"]
[StartTime "02:59:54"]
[EndDate "2011.02.01"]
[EndTime "03:01:47"]
[Link "https://www.chess.com/game/live/93504009"]

1. e4 {[%clk 0:01:00]} 1... e5 {[%clk 0:01:00]} 2. c3 {[%clk 0:00:58.8]} 2... Nc6 {[%clk 0:00:59.7]} 3. Ne2 {[%clk 0:00:57.6]} 3... Nge7 {[%clk 0:00:59.6]} 4. d4 {[%clk 0:00:56]} 4... Ng6 {[%clk 0:00:59.4]} 5. d5 {[%clk 0:00:54.2]} 5... Nce7 {[%clk 0:00:59.1]} 6. Bg5 {[%clk 0:00:51.9]} 6... d6 {[%clk 0:00:58.8]} 7. Ng3 {[%clk 0:00:49.9]} 7... c6 {[%clk 0:00:57.5]} 8. Nf5 {[%clk 0:00:48.7]} 8... cxd5 {[%clk 0:00:55.7]} 9. Nxe7 {[%clk 0:00:45.9]} 9... Bxe7 {[%clk 0:00:55.5]} 10. Be3 {[%clk 0:00:43.4]} 10... dxe4 {[%clk 0:00:54]} 11. Be2 {[%clk 0:00:40.8]} 11... O-O {[%clk 0:00:53.5]} 12. Qd2 {[%clk 0:00:39.8]} 12... f5 {[%clk 0:00:53.1]} 13. c4 {[%clk 0:00:38.5]} 13... f4 {[%clk 0:00:52.7]} 14. Nc3 {[%clk 0:00:33.3]} 14... fxe3 {[%clk 0:00:51.4]} 15. fxe3 {[%clk 0:00:32.4]} 15... Bh4+ {[%clk 0:00:49.8]} 16. g3 {[%clk 0:00:29.8]} 16... Bg5 {[%clk 0:00:46.4]} 17. O-O-O {[%clk 0:00:28.6]} 17... Rf2 {[%clk 0:00:43.3]} 18. Rhf1 {[%clk 0:00:25.7]} 18... Qf6 {[%clk 0:00:42.4]} 19. Rde1 {[%clk 0:00:23.1]} 19... Rxe2 {[%clk 0:00:38.3]} 20. Rxe2 {[%clk 0:00:21.2]} 20... Qxf1+ {[%clk 0:00:36.7]} 21. Nd1 {[%clk 0:00:19.9]} 21... Bg4 {[%clk 0:00:34.4]} 22. Re1 {[%clk 0:00:18.5]} 22... Qf3 {[%clk 0:00:33]} 23. Nc3 {[%clk 0:00:16.8]} 23... Bxe3 {[%clk 0:00:30.5]} 24. Qxe3 {[%clk 0:00:14.7]} 24... Qxe3+ {[%clk 0:00:25.6]} 25. Rxe3 {[%clk 0:00:14.6]} 25... Rc8 {[%clk 0:00:25.3]} 26. Nxe4 {[%clk 0:00:13.1]} 26... Rxc4+ {[%clk 0:00:23.5]} 27. Kb1 {[%clk 0:00:09.9]} 27... d5 {[%clk 0:00:23.2]} 28. Nd6 {[%clk 0:00:08.1]} 28... Rd4 {[%clk 0:00:22.3]} 29. Nb5 {[%clk 0:00:03.5]} 29... Rd1+ {[%clk 0:00:21.9]} 30. Kc2 {[%clk 0:00:01.1]} 30... d4 {[%clk 0:00:21]} 0-1

[Event "Live Chess"]
[Site "Chess.com"]
[Date "2011.02.01"]
[Round "-"]
[White "hipposcottimus"]
[Black "maxdiesel"]
[Result "1-0"]
[CurrentPosition "8/8/8/2pPB2R/2k1P3/5N2/6PP/6K1 b - -"]
[Timezone "UTC"]
[ECO "A40"]
[ECOUrl "https://www.chess.com/openings/Modern-Defense-with-1-d4-2.c4-Bg7-3.e4"]
[UTCDate "2011.02.01"]
[UTCTime "02:57:06"]
[WhiteElo "1641"]
[BlackElo "1437"]
[TimeControl "60"]
[Termination "hipposcottimus won on time"]
[StartTime "02:57:06"]
[EndDate "2011.02.01"]
[EndTime "02:59:25"]
[Link "https://www.chess.com/game/live/93503352"]

1. e4 {[%clk 0:01:00]} 1... g6 {[%clk 0:01:00]} 2. d4 {[%clk 0:00:58.5]} 2... Bg7 {[%clk 0:00:59.6]} 3. c4 {[%clk 0:00:58.3]} 3... b6 {[%clk 0:00:59.2]} 4. Nc3 {[%clk 0:00:57.1]} 4... Bb7 {[%clk 0:00:58.9]} 5. f4 {[%clk 0:00:56.5]} 5... f6 {[%clk 0:00:58.4]} 6. Nf3 {[%clk 0:00:55.7]} 6... e6 {[%clk 0:00:57.7]} 7. d5 {[%clk 0:00:54.8]} 7... h6 {[%clk 0:00:57.1]} 8. Be2 {[%clk 0:00:52.7]} 8... e5 {[%clk 0:00:55.5]} 9. fxe5 {[%clk 0:00:50.3]} 9... fxe5 {[%clk 0:00:54.9]} 10. O-O {[%clk 0:00:49.8]} 10... d6 {[%clk 0:00:54.4]} 11. Re1 {[%clk 0:00:49]} 11... Nd7 {[%clk 0:00:54.1]} 12. Rf1 {[%clk 0:00:47.4]} 12... Ngf6 {[%clk 0:00:53.7]} 13. Ne1 {[%clk 0:00:45.3]} 13... a6 {[%clk 0:00:53.3]} 14. Bg4 {[%clk 0:00:41.1]} 14... c5 {[%clk 0:00:53]} 15. Ne2 {[%clk 0:00:38.7]} 15... Qe7 {[%clk 0:00:51.2]} 16. Ng3 {[%clk 0:00:38.2]} 16... Rf8 {[%clk 0:00:49.9]} 17. b3 {[%clk 0:00:36.7]} 17... Nxg4 {[%clk 0:00:48.2]} 18. Rxf8+ {[%clk 0:00:33.6]} 18... Qxf8 {[%clk 0:00:46]} 19. Qxg4 {[%clk 0:00:33.3]} 19... h5 {[%clk 0:00:44.4]} 20. Qxg6+ {[%clk 0:00:32.4]} 20... Qf7 {[%clk 0:00:42.1]} 21. Qh7 {[%clk 0:00:31.8]} 21... Ke7 {[%clk 0:00:41.1]} 22. Nf5+ {[%clk 0:00:29]} 22... Kd8 {[%clk 0:00:37.3]} 23. Bg5+ {[%clk 0:00:27]} 23... Kc7 {[%clk 0:00:35.9]} 24. Nf3 {[%clk 0:00:22.6]} 24... Nf8 {[%clk 0:00:34.4]} 25. Nh6 {[%clk 0:00:21.7]} 25... Qd7 {[%clk 0:00:29.2]} 26. Qf5 {[%clk 0:00:20.6]} 26... Bxh6 {[%clk 0:00:27.8]} 27. Bxh6 {[%clk 0:00:20.3]} 27... Nh7 {[%clk 0:00:26.4]} 28. Qxd7+ {[%clk 0:00:18.3]} 28... Kxd7 {[%clk 0:00:23.7]} 29. Be3 {[%clk 0:00:17.6]} 29... Rg8 {[%clk 0:00:22.3]} 30. Bf2 {[%clk 0:00:17.2]} 30... a5 {[%clk 0:00:21.5]} 31. Bg3 {[%clk 0:00:16.8]} 31... Bc8 {[%clk 0:00:20.6]} 32. Re1 {[%clk 0:00:16.4]} 32... Kc7 {[%clk 0:00:20.1]} 33. Rf1 {[%clk 0:00:16.1]} 33... Bg4 {[%clk 0:00:18.9]} 34. Nd2 {[%clk 0:00:15.6]} 34... Rg5 {[%clk 0:00:16.6]} 35. Rf7+ {[%clk 0:00:15]} 35... Kc8 {[%clk 0:00:14.8]} 36. Rxh7 {[%clk 0:00:14.7]} 36... h4 {[%clk 0:00:13.4]} 37. Rh8+ {[%clk 0:00:14.2]} 37... Kb7 {[%clk 0:00:11.8]} 38. Bxh4 {[%clk 0:00:13.9]} 38... Ka7 {[%clk 0:00:10.8]} 39. Rh7+ {[%clk 0:00:10.9]} 39... Ka6 {[%clk 0:00:09.3]} 40. Bxg5 {[%clk 0:00:10.4]} 40... Bc8 {[%clk 0:00:07.5]} 41. Nf3 {[%clk 0:00:10.1]} 41... Bb7 {[%clk 0:00:06.9]} 42. Rh6 {[%clk 0:00:09.8]} 42... a4 {[%clk 0:00:06.4]} 43. Rxd6 {[%clk 0:00:09.5]} 43... Ka5 {[%clk 0:00:05.2]} 44. bxa4 {[%clk 0:00:08.7]} 44... Kxa4 {[%clk 0:00:03.9]} 45. Rxb6 {[%clk 0:00:08]} 45... Ka5 {[%clk 0:00:02.5]} 46. Rxb7 {[%clk 0:00:07.3]} 46... Ka4 {[%clk 0:00:02]} 47. Rh7 {[%clk 0:00:07.1]} 47... Ka3 {[%clk 0:00:01.6]} 48. Rh4 {[%clk 0:00:06.8]} 48... Kxa2 {[%clk 0:00:01.2]} 49. Rh5 {[%clk 0:00:06.5]} 49... Kb3 {[%clk 0:00:00.8]} 50. Bf6 {[%clk 0:00:06.2]} 50... Kxc4 {[%clk 0:00:00.4]} 51. Bxe5 {[%clk 0:00:06]} 1-0

[Event "Live Chess"]
[Site "Chess.com"]
[Date "2011.02.01"]
[Round "-"]
[White "maxdiesel"]
[Black "hipposcottimus"]
[Result "0-1"]
[CurrentPosition "r5k1/8/1K3Bn1/3P1p2/2P2P2/8/8/q7 w - -"]
[Timezone "UTC"]
[ECO "A06"]
[ECOUrl "https://www.chess.com/openings/Reti-Opening-Reversed-Mexican-Defense"]
[UTCDate "2011.02.01"]
[UTCTime "02:54:30"]
[WhiteElo "1460"]
[BlackElo "1637"]
[TimeControl "60"]
[Termination "hipposcottimus won on time"]
[StartTime "02:54:30"]
[EndDate "2011.02.01"]
[EndTime "02:56:41"]
[Link "https://www.chess.com/game/live/93502770"]

1. Nf3 {[%clk 0:01:00]} 1... d5 {[%clk 0:01:00]} 2. Nc3 {[%clk 0:00:59.4]} 2... Bg4 {[%clk 0:00:59.4]} 3. d4 {[%clk 0:00:57.2]} 3... Bxf3 {[%clk 0:00:58.2]} 4. exf3 {[%clk 0:00:56.6]} 4... c5 {[%clk 0:00:57.4]} 5. f4 {[%clk 0:00:55.4]} 5... c4 {[%clk 0:00:55.5]} 6. Be3 {[%clk 0:00:52.8]} 6... e6 {[%clk 0:00:54.8]} 7. g3 {[%clk 0:00:51.6]} 7... f5 {[%clk 0:00:54.4]} 8. Qf3 {[%clk 0:00:50.1]} 8... Nf6 {[%clk 0:00:53.9]} 9. Bh3 {[%clk 0:00:48.9]} 9... Bb4 {[%clk 0:00:53]} 10. g4 {[%clk 0:00:47.4]} 10... Bxc3+ {[%clk 0:00:52.3]} 11. bxc3 {[%clk 0:00:45.8]} 11... fxg4 {[%clk 0:00:51.4]} 12. Bxg4 {[%clk 0:00:44.2]} 12... O-O {[%clk 0:00:51.1]} 13. h3 {[%clk 0:00:42.8]} 13... Ne4 {[%clk 0:00:50.7]} 14. h4 {[%clk 0:00:40.1]} 14... Nxc3 {[%clk 0:00:49.1]} 15. Bxe6+ {[%clk 0:00:38.6]} 15... Kh8 {[%clk 0:00:47.7]} 16. Bd2 {[%clk 0:00:37]} 16... Ne4 {[%clk 0:00:46.7]} 17. Be3 {[%clk 0:00:34.5]} 17... Qa5+ {[%clk 0:00:45.8]} 18. Kf1 {[%clk 0:00:32.7]} 18... Qc3 {[%clk 0:00:43.3]} 19. Bxd5 {[%clk 0:00:29.9]} 19... Qxa1+ {[%clk 0:00:41.3]} 20. Kg2 {[%clk 0:00:28.3]} 20... Qxa2 {[%clk 0:00:35.2]} 21. Qxe4 {[%clk 0:00:27.5]} 21... Nc6 {[%clk 0:00:32.4]} 22. Bxc4 {[%clk 0:00:26]} 22... Qxc4 {[%clk 0:00:30.3]} 23. Rh3 {[%clk 0:00:23.8]} 23... Qf7 {[%clk 0:00:29]} 24. Rg3 {[%clk 0:00:22.3]} 24... g6 {[%clk 0:00:26.8]} 25. h5 {[%clk 0:00:20.8]} 25... Rg8 {[%clk 0:00:24.7]} 26. hxg6 {[%clk 0:00:18.8]} 26... hxg6 {[%clk 0:00:24.4]} 27. f5 {[%clk 0:00:16.9]} 27... Qxf5 {[%clk 0:00:21.4]} 28. Qxf5 {[%clk 0:00:13]} 28... gxf5 {[%clk 0:00:21.1]} 29. Rxg8+ {[%clk 0:00:11.9]} 29... Rxg8+ {[%clk 0:00:20.8]} 30. Kf3 {[%clk 0:00:11.2]} 30... Rf8 {[%clk 0:00:20.4]} 31. Ke2 {[%clk 0:00:10.8]} 31... Ne7 {[%clk 0:00:19.5]} 32. Kd3 {[%clk 0:00:09.4]} 32... Ng6 {[%clk 0:00:19.2]} 33. Bf4 {[%clk 0:00:08.7]} 33... Nh4 {[%clk 0:00:18.8]} 34. Bg5 {[%clk 0:00:07.3]} 34... Ng6 {[%clk 0:00:18.1]} 35. f3 {[%clk 0:00:05.7]} 35... b6 {[%clk 0:00:16.8]} 36. f4 {[%clk 0:00:04.9]} 36... a5 {[%clk 0:00:15.5]} 37. Kc4 {[%clk 0:00:04.5]} 37... a4 {[%clk 0:00:15.2]} 38. Kb5 {[%clk 0:00:04]} 38... Ra8 {[%clk 0:00:13.9]} 39. Kxb6 {[%clk 0:00:03]} 39... a3 {[%clk 0:00:13.6]} 40. c4 {[%clk 0:00:01.7]} 40... a2 {[%clk 0:00:13.3]} 41. Bf6+ {[%clk 0:00:01]} 41... Kg8 {[%clk 0:00:11.7]} 42. d5 {[%clk 0:00:00.4]} 42... a1=Q {[%clk 0:00:09.9]} 0-1

[Event "Live Chess"]
[Site "Chess.com"]
[Date "2011.02.01"]
[Round "-"]
[White "hipposcottimus"]
[Black "maxdiesel"]
[Result "1-0"]
[CurrentPosition "2kr4/2qnQ3/4B3/pPp1Pp2/P2p4/1P4P1/7P/2R1B1K1 b - -"]
[Timezone "UTC"]
[ECO "B02"]
[ECOUrl "https://www.chess.com/openings/Alekhines-Defense-Brooklyn-Variation-3.d4"]
[UTCDate "2011.02.01"]
[UTCTime "02:52:01"]
[WhiteElo "1632"]
[BlackElo "1488"]
[TimeControl "60"]
[Termination "hipposcottimus won on time"]
[StartTime "02:52:01"]
[EndDate "2011.02.01"]
[EndTime "02:53:57"]
[Link "https://www.chess.com/game/live/93502194"]

1. e4 {[%clk 0:01:00]} 1... Nf6 {[%clk 0:01:00]} 2. e5 {[%clk 0:00:58.8]} 2... Ng8 {[%clk 0:00:58.6]} 3. d4 {[%clk 0:00:57.6]} 3... e6 {[%clk 0:00:58]} 4. f4 {[%clk 0:00:56]} 4... d6 {[%clk 0:00:57.2]} 5. Nf3 {[%clk 0:00:55.6]} 5... d5 {[%clk 0:00:55.9]} 6. c4 {[%clk 0:00:53.9]} 6... f5 {[%clk 0:00:55.3]} 7. Be2 {[%clk 0:00:51.8]} 7... c6 {[%clk 0:00:54.1]} 8. O-O {[%clk 0:00:51.4]} 8... b6 {[%clk 0:00:52.5]} 9. b3 {[%clk 0:00:51]} 9... c5 {[%clk 0:00:51.7]} 10. a4 {[%clk 0:00:50.7]} 10... a5 {[%clk 0:00:50.4]} 11. dxc5 {[%clk 0:00:49.2]} 11... bxc5 {[%clk 0:00:48.9]} 12. Nc3 {[%clk 0:00:47.9]} 12... d4 {[%clk 0:00:47.6]} 13. Nb5 {[%clk 0:00:45.9]} 13... Ba6 {[%clk 0:00:45.9]} 14. Bd2 {[%clk 0:00:43.4]} 14... Bxb5 {[%clk 0:00:44.7]} 15. cxb5 {[%clk 0:00:43.2]} 15... Qb6 {[%clk 0:00:43.8]} 16. Bc4 {[%clk 0:00:42.4]} 16... Nd7 {[%clk 0:00:41.2]} 17. Ng5 {[%clk 0:00:41.5]} 17... Ne7 {[%clk 0:00:34]} 18. Nxe6 {[%clk 0:00:39.1]} 18... Ng6 {[%clk 0:00:32.4]} 19. Be1 {[%clk 0:00:35.6]} 19... Be7 {[%clk 0:00:30.6]} 20. Rf3 {[%clk 0:00:33.3]} 20... h5 {[%clk 0:00:29.3]} 21. Rh3 {[%clk 0:00:32.4]} 21... Nxf4 {[%clk 0:00:22.3]} 22. g3 {[%clk 0:00:30.5]} 22... Nxe6 {[%clk 0:00:20.8]} 23. Rxh5 {[%clk 0:00:28]} 23... Nef8 {[%clk 0:00:16.7]} 24. Rxh8 {[%clk 0:00:26.3]} 24... O-O-O {[%clk 0:00:14.3]} 25. Qh5 {[%clk 0:00:25.6]} 25... Ne6 {[%clk 0:00:12]} 26. Qg6 {[%clk 0:00:23.5]} 26... Rxh8 {[%clk 0:00:10]} 27. Bxe6 {[%clk 0:00:23.1]} 27... Qb7 {[%clk 0:00:07.8]} 28. Qxg7 {[%clk 0:00:21.1]} 28... Rd8 {[%clk 0:00:03.4]} 29. Qxe7 {[%clk 0:00:19.9]} 29... Qc7 {[%clk 0:00:01.4]} 30. Rc1 {[%clk 0:00:18]} 1-0

[Event "Live Chess"]
[Site "Chess.com"]
[Date "2011.02.01"]
[Round "-"]
[White "maxdiesel"]
[Black "hipposcottimus"]
[Result "1-0"]
[CurrentPosition "2r1r1k1/7R/p4R2/1n6/1P6/5P2/P4KPP/8 b - -"]
[Timezone "UTC"]
[ECO "A00"]
[ECOUrl "https://www.chess.com/openings/Van-Geet-Opening-1...c5-2.Nf3"]
[UTCDate "2011.02.01"]
[UTCTime "02:49:28"]
[WhiteElo "1525"]
[BlackElo "1626"]
[TimeControl "60"]
[Termination "maxdiesel won on time"]
[StartTime "02:49:28"]
[EndDate "2011.02.01"]
[EndTime "02:51:40"]
[Link "https://www.chess.com/game/live/93501584"]

1. Nf3 {[%clk 0:01:00]} 1... c5 {[%clk 0:01:00]} 2. Nc3 {[%clk 0:00:59.6]} 2... d5 {[%clk 0:00:56.9]} 3. d4 {[%clk 0:00:59.1]} 3... c4 {[%clk 0:00:55.6]} 4. e4 {[%clk 0:00:57.1]} 4... e5 {[%clk 0:00:53.2]} 5. Nxe5 {[%clk 0:00:54.8]} 5... f6 {[%clk 0:00:50.3]} 6. Nf3 {[%clk 0:00:52.6]} 6... Bb4 {[%clk 0:00:49.3]} 7. exd5 {[%clk 0:00:50.1]} 7... Bxc3+ {[%clk 0:00:48.6]} 8. bxc3 {[%clk 0:00:48.8]} 8... Qxd5 {[%clk 0:00:48.3]} 9. Ba3 {[%clk 0:00:44.8]} 9... Nc6 {[%clk 0:00:44.5]} 10. Qe2+ {[%clk 0:00:43.1]} 10... Nge7 {[%clk 0:00:44]} 11. Qxc4 {[%clk 0:00:41.7]} 11... Be6 {[%clk 0:00:35]} 12. Qxd5 {[%clk 0:00:39.8]} 12... Bxd5 {[%clk 0:00:34.7]} 13. Bxe7 {[%clk 0:00:38.7]} 13... Nxe7 {[%clk 0:00:33.7]} 14. Nd2 {[%clk 0:00:37]} 14... O-O {[%clk 0:00:33.1]} 15. f3 {[%clk 0:00:36.3]} 15... Nf5 {[%clk 0:00:31.9]} 16. Bc4 {[%clk 0:00:35]} 16... Bxc4 {[%clk 0:00:29.4]} 17. Nxc4 {[%clk 0:00:34.1]} 17... b5 {[%clk 0:00:27.5]} 18. Ne3 {[%clk 0:00:31.8]} 18... Nxe3 {[%clk 0:00:25.5]} 19. Kf2 {[%clk 0:00:29.4]} 19... Nxc2 {[%clk 0:00:24.5]} 20. Rab1 {[%clk 0:00:26.7]} 20... Na3 {[%clk 0:00:24.2]} 21. Rb3 {[%clk 0:00:25.2]} 21... b4 {[%clk 0:00:22.1]} 22. cxb4 {[%clk 0:00:23.7]} 22... Nc2 {[%clk 0:00:21.4]} 23. Rc3 {[%clk 0:00:22.6]} 23... Nxd4 {[%clk 0:00:20.2]} 24. Rd3 {[%clk 0:00:20.5]} 24... Nb5 {[%clk 0:00:19.4]} 25. Rc1 {[%clk 0:00:18]} 25... a6 {[%clk 0:00:17.4]} 26. Rd7 {[%clk 0:00:16.4]} 26... Rae8 {[%clk 0:00:17]} 27. Rb7 {[%clk 0:00:14]} 27... Ra8 {[%clk 0:00:16.6]} 28. Rd1 {[%clk 0:00:12.7]} 28... Rfe8 {[%clk 0:00:15.2]} 29. Rdd7 {[%clk 0:00:11.4]} 29... Kf8 {[%clk 0:00:09.2]} 30. Rf7+ {[%clk 0:00:10]} 30... Kg8 {[%clk 0:00:08]} 31. Rxg7+ {[%clk 0:00:09.3]} 31... Kh8 {[%clk 0:00:06.8]} 32. Rbf7 {[%clk 0:00:07.9]} 32... Rac8 {[%clk 0:00:03]} 33. Rxh7+ {[%clk 0:00:06.9]} 33... Kg8 {[%clk 0:00:02.2]} 34. Rfg7+ {[%clk 0:00:06.3]} 34... Kf8 {[%clk 0:00:01.4]} 35. Rf7+ {[%clk 0:00:05.7]} 35... Kg8 {[%clk 0:00:00.7]} 36. Rxf6 {[%clk 0:00:05.1]} 1-0

[Event "Live Chess"]
[Site "Chess.com"]
[Date "2011.02.01"]
[Round "-"]
[White "hipposcottimus"]
[Black "maxdiesel"]
[Result "1-0"]
[CurrentPosition "2r5/5ppk/8/p1p1p2p/4P3/q4P2/2B3PP/R4R1K b - -"]
[Timezone "UTC"]
[ECO "C41"]
[ECOUrl "https://www.chess.com/openings/Philidor-Defense-3.d4-Bg4-4.dxe5"]
[UTCDate "2011.02.01"]
[UTCTime "02:46:45"]
[WhiteElo "1637"]
[BlackElo "1433"]
[TimeControl "60"]
[Termination "hipposcottimus won on time"]
[StartTime "02:46:45"]
[EndDate "2011.02.01"]
[EndTime "02:48:52"]
[Link "https://www.chess.com/game/live/93500994"]

1. e4 {[%clk 0:01:00]} 1... e5 {[%clk 0:01:00]} 2. Nf3 {[%clk 0:00:58.9]} 2... d6 {[%clk 0:00:58.3]} 3. d4 {[%clk 0:00:58.5]} 3... Bg4 {[%clk 0:00:57.6]} 4. dxe5 {[%clk 0:00:57.1]} 4... Bxf3 {[%clk 0:00:57]} 5. Qxf3 {[%clk 0:00:56.8]} 5... dxe5 {[%clk 0:00:56.2]} 6. Bc4 {[%clk 0:00:56.5]} 6... Nf6 {[%clk 0:00:54.3]} 7. O-O {[%clk 0:00:56.2]} 7... Nc6 {[%clk 0:00:53]} 8. Nc3 {[%clk 0:00:55.9]} 8... Nd4 {[%clk 0:00:52.1]} 9. Qf5 {[%clk 0:00:50.9]} 9... Nxc2 {[%clk 0:00:49.1]} 10. Rb1 {[%clk 0:00:43.8]} 10... Nd4 {[%clk 0:00:47.6]} 11. Qh3 {[%clk 0:00:41.4]} 11... h6 {[%clk 0:00:45.5]} 12. Nd5 {[%clk 0:00:40.6]} 12... Nxd5 {[%clk 0:00:42.8]} 13. Bxd5 {[%clk 0:00:40.4]} 13... Qf6 {[%clk 0:00:41.2]} 14. f3 {[%clk 0:00:38.9]} 14... Ne2+ {[%clk 0:00:38.7]} 15. Kh1 {[%clk 0:00:37.2]} 15... Nf4 {[%clk 0:00:36.9]} 16. Qg3 {[%clk 0:00:35.3]} 16... h5 {[%clk 0:00:32.5]} 17. Qf2 {[%clk 0:00:33.4]} 17... Nd3 {[%clk 0:00:30.4]} 18. Qe3 {[%clk 0:00:30.8]} 18... Nc5 {[%clk 0:00:28.9]} 19. Bd2 {[%clk 0:00:27.3]} 19... b6 {[%clk 0:00:27.3]} 20. Bxa8 {[%clk 0:00:26]} 20... Be7 {[%clk 0:00:25.6]} 21. Bc6+ {[%clk 0:00:25.3]} 21... Kf8 {[%clk 0:00:22.5]} 22. Bb4 {[%clk 0:00:24.9]} 22... Kg8 {[%clk 0:00:20]} 23. Bxc5 {[%clk 0:00:23.6]} 23... Bxc5 {[%clk 0:00:18.2]} 24. Qc3 {[%clk 0:00:23.3]} 24... Kh7 {[%clk 0:00:17.5]} 25. Rbd1 {[%clk 0:00:22.8]} 25... Rd8 {[%clk 0:00:15.5]} 26. Bd5 {[%clk 0:00:22]} 26... c6 {[%clk 0:00:13.4]} 27. Bb3 {[%clk 0:00:20.9]} 27... b5 {[%clk 0:00:10.8]} 28. a3 {[%clk 0:00:18.9]} 28... Bb6 {[%clk 0:00:10.1]} 29. Ba2 {[%clk 0:00:18.1]} 29... a6 {[%clk 0:00:09.5]} 30. Bb1 {[%clk 0:00:16.5]} 30... a5 {[%clk 0:00:08.9]} 31. Rde1 {[%clk 0:00:16.1]} 31... b4 {[%clk 0:00:08.4]} 32. Qc2 {[%clk 0:00:15.7]} 32... bxa3 {[%clk 0:00:07]} 33. bxa3 {[%clk 0:00:15.2]} 33... Rc8 {[%clk 0:00:05.9]} 34. Qb3 {[%clk 0:00:14]} 34... c5 {[%clk 0:00:04.6]} 35. Qxb6 {[%clk 0:00:13]} 35... Qxb6 {[%clk 0:00:02.9]} 36. Rc1 {[%clk 0:00:12.5]} 36... Qb3 {[%clk 0:00:01.8]} 37. Bc2 {[%clk 0:00:11.9]} 37... Qxa3 {[%clk 0:00:00.4]} 38. Ra1 {[%clk 0:00:11.7]} 1-0

[Event "Live Chess"]
[Site "Chess.com"]
[Date "2011.02.01"]
[Round "-"]
[White "maxdiesel"]
[Black "hipposcottimus"]
[Result "0-1"]
[CurrentPosition "5rk1/p5pp/8/8/8/1P4Kb/P1P2P2/8 w - -"]
[Timezone "UTC"]
[ECO "A06"]
[ECOUrl "https://www.chess.com/openings/Reti-Opening-Reversed-Mexican-Defense"]
[UTCDate "2011.02.01"]
[UTCTime "02:43:56"]
[WhiteElo "1472"]
[BlackElo "1632"]
[TimeControl "60"]
[Termination "hipposcottimus won on time"]
[StartTime "02:43:56"]
[EndDate "2011.02.01"]
[EndTime "02:46:11"]
[Link "https://www.chess.com/game/live/93500411"]

1. Nf3 {[%clk 0:01:00]} 1... d5 {[%clk 0:01:00]} 2. Nc3 {[%clk 0:00:59.7]} 2... Nc6 {[%clk 0:00:54.6]} 3. d4 {[%clk 0:00:58.8]} 3... e6 {[%clk 0:00:53]} 4. e4 {[%clk 0:00:57.9]} 4... Bb4 {[%clk 0:00:52.7]} 5. exd5 {[%clk 0:00:56.4]} 5... Qxd5 {[%clk 0:00:51.6]} 6. Bd2 {[%clk 0:00:54.8]} 6... Bxc3 {[%clk 0:00:51.2]} 7. Bxc3 {[%clk 0:00:53.3]} 7... Nge7 {[%clk 0:00:50.8]} 8. b3 {[%clk 0:00:50.6]} 8... Ng6 {[%clk 0:00:48.8]} 9. Bc4 {[%clk 0:00:48.9]} 9... Qd6 {[%clk 0:00:46.3]} 10. O-O {[%clk 0:00:47]} 10... Bd7 {[%clk 0:00:45]} 11. Re1 {[%clk 0:00:46.2]} 11... O-O {[%clk 0:00:43.6]} 12. Bd3 {[%clk 0:00:45.3]} 12... f5 {[%clk 0:00:41.3]} 13. h3 {[%clk 0:00:43.5]} 13... Nf4 {[%clk 0:00:38.6]} 14. Qd2 {[%clk 0:00:40.8]} 14... Rae8 {[%clk 0:00:34.7]} 15. g3 {[%clk 0:00:37.9]} 15... Nxh3+ {[%clk 0:00:32.9]} 16. Kg2 {[%clk 0:00:36.2]} 16... Rf6 {[%clk 0:00:28]} 17. Kxh3 {[%clk 0:00:34.6]} 17... Rh6+ {[%clk 0:00:27.7]} 18. Kg2 {[%clk 0:00:33.5]} 18... f4 {[%clk 0:00:26.8]} 19. g4 {[%clk 0:00:31]} 19... e5 {[%clk 0:00:23.4]} 20. Rh1 {[%clk 0:00:28]} 20... Qg6 {[%clk 0:00:22.7]} 21. Bxg6 {[%clk 0:00:22.8]} 21... Rxg6 {[%clk 0:00:20.9]} 22. Rab1 {[%clk 0:00:20.6]} 22... Bxg4 {[%clk 0:00:20.3]} 23. dxe5 {[%clk 0:00:19.9]} 23... Bh5+ {[%clk 0:00:18.9]} 24. Kf1 {[%clk 0:00:17.6]} 24... Bxf3 {[%clk 0:00:18.5]} 25. Rh2 {[%clk 0:00:15.3]} 25... Nxe5 {[%clk 0:00:14.7]} 26. Re1 {[%clk 0:00:12.3]} 26... Rge6 {[%clk 0:00:13.9]} 27. Bxe5 {[%clk 0:00:10.5]} 27... Rxe5 {[%clk 0:00:12.6]} 28. Rxe5 {[%clk 0:00:09.1]} 28... Rxe5 {[%clk 0:00:12.3]} 29. Qxf4 {[%clk 0:00:07.9]} 29... Be2+ {[%clk 0:00:09.4]} 30. Kg2 {[%clk 0:00:06.2]} 30... Re8 {[%clk 0:00:09]} 31. Kg3 {[%clk 0:00:05.1]} 31... Bb5 {[%clk 0:00:06.7]} 32. Qxc7 {[%clk 0:00:03.7]} 32... Ba6 {[%clk 0:00:04.1]} 33. Qxb7 {[%clk 0:00:03.2]} 33... Rf8 {[%clk 0:00:03.8]} 34. Rh3 {[%clk 0:00:02.5]} 34... Bxb7 {[%clk 0:00:03]} 35. Kg4 {[%clk 0:00:01.8]} 35... Bc8+ {[%clk 0:00:02.7]} 36. Kg3 {[%clk 0:00:00.7]} 36... Bxh3 {[%clk 0:00:02.4]} 0-1